Cogmind - Beta 16 @@@ ROGUE MODE // 2025.10.26 @ 18:04:17 Player: KeKe Result: Destroyed by S-43 Plague with Heavy Machine Gun Performance ------------- Evolutions (6) 3000 Regions Visited (12) 2400 Robots Destroyed (68) 340 Value Destroyed (2691) 2691 Prototype IDs (32) 640 Alien Tech Used (2) 400 Bonus (1085) 1085 TOTAL SCORE: 10556 Bonus ------- High Alert Combat Kills 172 Follower Combat Kills 113 Registered with UFD 300 Met Optimus in HQ 500 Cogmind --------- Core Integrity 0/1150 Matter 220/300 Energy 99/100 System Corruption 0% Temperature Cool (0) Movement Core (50) Location -3/Proximity Caves Parts ------- > --- POWER (1) -------- (None) > --- PROPULSION (2) --- (None) > --- UTILITY (12) ----- Advanced Targeting Computer Armor Integrity Analyzer Advanced Hacking Suite > --- WEAPON (4) ------- (None) > --- INVENTORY (5) ---- (None) Peak State ------------ > --- POWER ------------ Light Angular Momentum Engine > --- PROPULSION ------- Cargo Legs > --- UTILITY ---------- Scrap Suit Advanced Heat Sink Advanced Heat Sink Large Storage Unit Improved Trap Scanner Enhanced Optical Array A0-MCA's Component Scanner > --- WEAPON ----------- Thermic Laser Phase Cannon Phase Cannon Chainsword > --- INVENTORY -------- Improved Ion Engine Micro Nuclear Core Wheel Compact Wheel Compact Wheel Improved Surge Thruster Improved Surge Thruster Targeting Computer Phase Shifter Drone Bay Compact Ion Cannon Long-range Missile Launcher Shrapnel Trap Vortex Trap Piercing Trap [Rating: 82] Favorites ----------- Power Light Angular Momentum Engine Engine Light Angular Momentum Engine Power Core Light Nuclear Core Reactor Fusion Reactor Propulsion Cargo Legs Leg Cargo Legs Wheel Compact Wheel Flight Unit Nuclear Pulse Array Utility Large Storage Unit Device Advanced Heat Sink Storage Large Storage Unit Processor A0-MCA's Component Scanner Hackware Advanced Hacking Suite Protection Heavy Armor Plating Weapon Subdweller Machine Gun Energy Gun Thermic Laser Energy Cannon Phase Cannon Ballistic Gun Subdweller Machine Gun Ballistic Cannon Gauss Cannon Launcher Grenade Launcher Special Weapon Remote Datajack Slashing Weapon Chainsword Build | -11 -10 -10 -8 -6 -6 -6 -5 -4 -4 -4 -4 -3 ------- Run | Yrd Mat Sub Scr Fac Low Low Fac Fac Upp Upp Zhi Pro Slots Evolved 12 | . . . . 8 . . 2 2 . . . . Power . | . . . . . . . . . . . . . Propulsion . | . . . . . . . . . . . . . Utility 10 | . . . . 6 . . 2 2 . . . . Weapon 2 | . . . . 2 . . . . . . . . Parts Attached 86 | . 3 14 5 28 6 2 6 2 2 8 7 3 Power 10 | . . 1 1 6 . . . . . 1 1 . Engine 7 | . . 1 1 4 . . . . . 1 . . Core 2 | . . . . 2 . . . . . . . . Reactor 1 | . . . . . . . . . . . 1 . Propulsion 15 | . 2 3 . 4 2 . 1 . . . 2 1 Treads . | . . . . . . . . . . . . . Leg 4 | . . 1 . . . . . . . . 2 1 Wheel 10 | . 2 2 . 4 2 . . . . . . . Hover . | . . . . . . . . . . . . . Flight 1 | . . . . . . . 1 . . . . . Utility 34 | . 1 1 2 12 1 1 2 2 2 5 4 1 Device 14 | . . . . 8 . . 2 . . 2 2 . Storage 2 | . 1 . . . . . . . 1 . . . Processor 10 | . . . 1 4 . 1 . 1 . 2 1 . Hackware 3 | . . . . . . . . 1 1 . 1 . Protection 5 | . . 1 1 . 1 . . . . 1 . 1 Artifact . | . . . . . . . . . . . . . Weapon 27 | . . 9 2 6 3 1 3 . . 2 . 1 Energy Gun 6 | . . 1 1 1 1 . 1 . . . . 1 Energy Cannon 5 | . . . . 4 . . . . . 1 . . Ballistic Gun 7 | . . 5 . . 1 . . . . 1 . . Ballistic Cannon 2 | . . 1 . 1 . . . . . . . . Launcher 2 | . . 1 . . . 1 . . . . . . Special Weapon 1 | . . . . . . . 1 . . . . . Impact Weapon . | . . . . . . . . . . . . . Slashing Weapon 4 | . . 1 1 . 1 . 1 . . . . . Piercing Weapon . | . . . . . . . . . . . . . Special Melee Weapon . | . . . . . . . . . . . . . Unidentified Prototypes 5 | . . 1 . . . . . . . . 4 . Parts Lost 62 | . . 9 . 18 4 7 1 1 . 11 . 11 Power 10 | . . 2 . 6 . . . . . 1 . 1 Propulsion 14 | . . 2 . 3 2 3 . . . 1 . 3 Utility 19 | . . 1 . 3 1 2 . 1 . 6 . 5 Weapon 19 | . . 4 . 6 1 2 1 . . 3 . 2 Highest Loss Streak 11 | . . 3 . 10 4 5 1 1 . 11 . 9 To Critical Strikes . | . . . . . . . . . . . . . Average Backups 7 | . 3 6 8 10 7 5 2 2 2 4 2 . Power . | . 1 . . 1 . . . . . . . . Propulsion 2 | . . 2 3 4 2 . . . . . . . Utility 1 | . . . . 2 3 2 . 1 1 3 . . Weapon 2 | . 1 3 3 2 1 1 . . . . . . Tool/Special . | . . . . . . . . . . . . . Unused Backups 9 | . . . 1 7 . . . . . 1 . . Power 1 | . . . . 1 . . . . . . . . Propulsion 4 | . . . 1 3 . . . . . . . . Utility 3 | . . . . 2 . . . . . 1 . . Weapon . | . . . . . . . . . . . . . Tool/Special 1 | . . . . 1 . . . . . . . . Average Slot Usage (%) 62 | . 86 59 58 86 85 65 13 25 33 32 39 49 Engine 3 | . 14 5 3 5 . . . . . . . . Leg 6 | . 4 6 11 4 . . . . . . 6 8 Wheel 3 | . 23 9 . 3 11 8 . . . . . . Device 8 | . . . . 25 18 9 7 10 5 7 6 6 Storage 7 | . 15 12 11 5 6 5 . . 4 . . . Processor 7 | . . . 7 12 20 22 . 1 5 5 10 13 Hackware 1 | . . . . . . . . 2 8 9 8 9 Protection 2 | . . 1 3 . 5 2 . . . . . 2 Energy Gun 3 | . . 1 2 5 11 5 . 5 5 3 . 1 Energy Cannon 2 | . . . . 10 . . . . . . . . Ballistic Gun 5 | . 28 15 8 . 4 2 . . . . . . Slashing Weapon 5 | . . 2 11 5 4 5 1 . . . . . Peak Build Rating 82 | . 7 24 50 82 54 47 25 31 34 38 62 70 Average Rating 41 | . 6 16 35 75 50 41 14 27 31 31 42 50 On Entrance 26 | 6 6 6 24 50 42 46 1 25 26 34 11 62 Avg Prop Armor Cover (%) . | . . . . . . . . . . . . . Naked Turns 6 | . . . . . . 1 5 . . . . . Heaviest Build 72 | 13 33 33 51 72 38 34 6 6 15 15 23 29 Greatest Support 60 | 20 26 55 55 55 26 26 15 15 15 15 60 60 Greatest Overweight (x) 11 | . 1 10 . 2 2 11 1 . . 4 . . Average Overweight (x) . | . . . . 1 1 1 . . . . . . Largest Inventory Capacity 15 | . 15 15 15 15 15 15 5 5 10 10 5 5 Average Capacity 13 | . 13 15 15 15 15 14 5 5 9 5 5 5 Most Carried 15 | . 6 10 15 15 11 10 5 2 4 5 3 2 Average Carried 9 | . 3 7 12 13 9 8 2 2 2 4 2 . Final Capacity 15 | 8 15 15 15 15 15 5 5 5 10 5 5 5 Final Carried 15 | 6 3 10 15 11 10 5 2 2 4 2 1 . Scrap Suit Usage (%) 19 | . . . . 87 . . . . . . . . Parts Cannibalized 6 | . . . . 6 . . . . . . . . Class Distribution -------------------- 58% | Mutant 13% | Skirmisher 13% | Hacker-Mutant 5% | Scavenger-Gunner 3% | Scavenger-Mutant Dominant Class ---------------- Mutant | -10/Materials Mutant | -10/Subcaves Mutant | -8/Scraptown Skirmisher | -6/Factory Scavenger-Gunner | -6/Lower Caves Commander-Mutant | -6/Lower Caves Mutant | -5/Factory Mutant | -4/Factory Hacker-Mutant | -4/Upper Caves Hacker-Mutant | -4/Upper Caves Hacker-Mutant | -4/Zhirov Hacker-Mutant | -3/Proximity Caves Resources | -11 -10 -10 -8 -6 -6 -6 -5 -4 -4 -4 -4 -3 ----------- Run | Yrd Mat Sub Scr Fac Low Low Fac Fac Upp Upp Zhi Pro Matter Collected 1309 | 200 . 353 50 385 85 22 . . 95 41 . 78 Remotely . | . . . . . . . . . . . . . Salvage Created 3887 | . . 423 . 3083 204 58 . . 54 65 . . Parts 142 | . . 21 . 111 6 2 . . 1 1 . . Haulers Intercepted 2 | . . . . 2 . . . . . . . . Recyclers Shooed 7 | . . . . 7 . . . . . . . . Parts Field Recycled . | . . . . . . . . . . . . . Retrieved Matter . | . . . . . . . . . . . . . Parts Self-Destructed 24 | . . 10 . . 3 11 . . . . . . Prevented . | . . . . . . . . . . . . . Parts Restored . | . . . . . . . . . . . . . Kills | -11 -10 -10 -8 -6 -6 -6 -5 -4 -4 -4 -4 -3 ------- Run | Yrd Mat Sub Scr Fac Low Low Fac Fac Upp Upp Zhi Pro Combat Hostiles Destroyed 50 | . . 9 . 36 2 . . . . 3 . . Melee 2 | . . . . 2 . . . . . . . . Guns 12 | . . 6 . 4 2 . . . . . . . Cannons 29 | . . 1 . 25 . . . . . 3 . . AOE 4 | . . 2 . 2 . . . . . . . . Classes Destroyed 15 | . . 2 . 11 1 1 . . . . . . Worker 3 | . . . . 3 . . . . . . . . Builder 5 | . . . . 5 . . . . . . . . Hauler 2 | . . . . 2 . . . . . . . . Recycler 6 | . . . . 6 . . . . . . . . Mechanic 1 | . . . . . . 1 . . . . . . Operator 1 | . . . . 1 . . . . . . . . Swarmer 5 | . . . . 2 . . . . . 3 . . Grunt 22 | . . . . 22 . . . . . . . . Duelist 2 | . . . . 2 . . . . . . . . Sentry 3 | . . 1 . 1 1 . . . . . . . Specialist 2 | . . . . 2 . . . . . . . . Hunter 2 | . . . . 2 . . . . . . . . Programmer 5 | . . . . 5 . . . . . . . . Subdweller 8 | . . 8 . . . . . . . . . . Packrat 2 | . . . . . 1 . . . 1 . . . Mutant 1 | . . . . . 1 . . . . . . . Best Kill Streak 5 | . . 2 . 5 1 1 . . . 3 . . Combat Bots Only 5 | . . 2 . 5 1 . . . . 3 . . Max Kills in Single Turn 2 | . . 1 . 2 1 1 . . 1 1 . . Gunslinging . | . . . . . . . . . . . . . Exploded 1 | . . 1 . 1 . . . . . . . . Melee 1 | . . . . 1 . . . . . . . . Uniques/NPCs Destroyed . | . . . . . . . . . . . . . Combat | -11 -10 -10 -8 -6 -6 -6 -5 -4 -4 -4 -4 -3 -------- Run | Yrd Mat Sub Scr Fac Low Low Fac Fac Upp Upp Zhi Pro Hostile Shots Fired 656 | . . 71 . 262 30 46 20 21 . 116 . 90 Missed 192 | . . 22 . 76 11 10 8 13 . 30 . 22 Hits 464 | . . 49 . 186 19 36 12 8 . 86 . 68 Melee 3 | . . . . 3 . . . . . . . . Projectile 461 | . . 49 . 183 19 36 12 8 . 86 . 68 Critical Strikes 11 | . . . . 5 1 1 . . . 3 . 1 Part Disruptions 2 | . . . . 2 . . . . . . . . Damage Taken 8785 | . . 1233 . 3112 179 719 228 201 . 1335 . 1778 Core 2282 | . . 197 . 535 21 292 115 76 . 579 . 467 Absorbed by Shields . | . . . . . . . . . . . . . Regen/Repaired (Parts) 285 | . . . 241 44 . . . . . . . . Core Remaining (%) 52 | 100 . . 21 . . . 88 . . . . . Volleys Fired 202 | . . 51 . 102 6 4 1 . 8 17 1 12 Largest 3 | . . 2 . 3 3 2 1 . 1 2 1 1 Hottest 255 | . . 70 . 255 153 84 5 . 75 121 5 50 Shots Fired 467 | . . 101 . 299 17 8 1 . 8 20 1 12 Gun 251 | . . 93 . 100 17 8 . . 8 13 . 12 Cannon 210 | . . 4 . 199 . . . . . 7 . . Launcher 4 | . . 4 . . . . . . . . . . Special 2 | . . . . . . . 1 . . . 1 . Kinetic 131 | . . 94 . 14 6 4 . . . 13 . . Thermal 327 | . . . . 285 11 4 . . 8 7 . 12 Explosive 4 | . . 4 . . . . . . . . . . Electromagnetic 3 | . . 3 . . . . . . . . . . Robot Hit Streak 25 | . . 11 . 25 22 23 7 . 9 3 1 13 Robot Miss Streak 4 | . . 3 . 4 . 1 . . 2 4 . . Penetration Max . | . . . . . . . . . . . . . Secondary Targets . | . . . . . . . . . . . . . Shots Hit Robots 357 | . . 78 . 221 17 8 5 . 5 10 1 12 Core Hits 125 | . . 25 . 85 5 2 . . 3 3 . 2 Critical Kills 3 | . . . . 2 1 . . . . . . . Critical Parts Destroyed . | . . . . . . . . . . . . . Critical Strikes 19 | . . . . 14 2 1 1 . . . . 1 Burn 14 | . . . . 11 1 1 . . . . . 1 Meltdown 2 | . . . . 2 . . . . . . . . Destroy 1 | . . . . . 1 . . . . . . . Blast 1 | . . . . 1 . . . . . . . . Sever 1 | . . . . . . . 1 . . . . . Melee Attacks 26 | . . 6 . 12 2 1 5 . . . . . Impact . | . . . . . . . . . . . . . Slashing 26 | . . 6 . 12 2 1 5 . . . . . Piercing . | . . . . . . . . . . . . . Sneak Attacks 7 | . . . . 5 1 1 . . . . . . Combat Hostiles . | . . . . . . . . . . . . . Follow-up Attacks . | . . . . . . . . . . . . . Damage Inflicted 9090 | . . 1143 . 6648 349 200 217 . 113 212 . 208 Guns 2992 | . . 806 . 1364 289 128 . . 113 84 . 208 Cannons 4800 | . . 92 . 4580 . . . . . 128 . . Explosions 430 | . . 245 . 185 . . . . . . . . Melee 868 | . . . . 519 60 72 217 . . . . . Ramming . | . . . . . . . . . . . . . Kinetic 1388 | . . 898 . 272 94 40 . . . 84 . . Thermal 6589 | . . . . 5857 195 88 . . 113 128 . 208 Explosive 245 | . . 245 . . . . . . . . . . Electromagnetic . | . . . . . . . . . . . . . Impact . | . . . . . . . . . . . . . Slashing 868 | . . . . 519 60 72 217 . . . . . Piercing . | . . . . . . . . . . . . . Highest Corruption 3 | . . . . 3 3 3 . . . . . . Average Corruption 2 | . . . . 2 3 3 . . . . . . Corruption Purged . | . . . . . . . . . . . . . Corruption Blocked . | . . . . . . . . . . . . . Effects 33 | . . . . 20 12 1 . . . . . . Message Errors 9 | . . . . 5 4 . . . . . . . Matter Fused 5 | . . . . 3 2 . . . . . . . Heat Flow Errors 5 | . . . . 4 1 . . . . . . . Energy Discharges 6 | . . . . 4 1 1 . . . . . . Data Loss (minor) 5 | . . . . 3 2 . . . . . . . Data Loss (major) 1 | . . . . . 1 . . . . . . . Misfires 2 | . . . . 1 1 . . . . . . . Overload Shots . | . . . . . . . . . . . . . Overflow Damage 347 | . . . . 293 46 . 1 . . 7 . . Projectiles 116 | . . . . 109 . . . . . 7 . . Explosions 87 | . . . . 87 . . . . . . . . Melee 144 | . . . . 97 46 . 1 . . . . . Knockbacks 7 | . . . . 7 . . . . . . . . Impact . | . . . . . . . . . . . . . Kinetic 7 | . . . . 7 . . . . . . . . Secondary . | . . . . . . . . . . . . . Self-Inflicted Damage 16 | . . 16 . . . . . . . . . . Shots 1 | . . 1 . . . . . . . . . . Rammed . | . . . . . . . . . . . . . Targets Rammed . | . . . . . . . . . . . . . Kicked . | . . . . . . . . . . . . . Crushed . | . . . . . . . . . . . . . Highest Temperature 476 | . . . . 476 101 2 . . . 66 . . Average Temperature 115 | . . . . 123 49 2 . . . 29 . . Received Heat Transfer 1831 | . . 129 . 1116 160 189 108 . . 21 . 108 Effects 3 | . . . . 3 . . . . . . . . Shutdowns 1 | . . . . 1 . . . . . . . . Energy Bleed 1 | . . . . 1 . . . . . . . . Short Circuit 1 | . . . . 1 . . . . . . . . Siege Activations . | . . . . . . . . . . . . . Martial Activations . | . . . . . . . . . . . . . Shielding Activations . | . . . . . . . . . . . . . Robots Disrupted . | . . . . . . . . . . . . . Combat Hostiles . | . . . . . . . . . . . . . Robots Corrupted . | . . . . . . . . . . . . . Combat Hostiles . | . . . . . . . . . . . . . Parts Fried . | . . . . . . . . . . . . . Impact Corruptions . | . . . . . . . . . . . . . Robots Melted 3 | . . . . 3 . . . . . . . . Combat Hostiles 3 | . . . . 3 . . . . . . . . Parts Melted 27 | . . . . 27 . . . . . . . . Heat Transferred 11376 | . . . . 9742 444 222 . . 250 200 . 518 Parts Sabotaged . | . . . . . . . . . . . . . Parts Stolen . | . . . . . . . . . . . . . Parts Stripped . | . . . . . . . . . . . . . Power Chain Reactions . | . . . . . . . . . . . . . Alert | -11 -10 -10 -8 -6 -6 -6 -5 -4 -4 -4 -4 -3 ------- Run | Yrd Mat Sub Scr Fac Low Low Fac Fac Upp Upp Zhi Pro Maximum Alert Level 2 | . . . . 2 . . . . . . . . Low Security (%) 69 | . 100 . . 63 . . 100 100 . . . . Level 1 14 | . . . . 17 . . . . . . . . Level 2 15 | . . . . 18 . . . . . . . . Level 3 . | . . . . . . . . . . . . . Level 4 . | . . . . . . . . . . . . . Level 5 . | . . . . . . . . . . . . . High Security . | . . . . . . . . . . . . . Max Security . | . . . . . . . . . . . . . Peak Influence 670 | . . . . 670 . . 17 15 . . . . Initial 14 | . . . . . . . 14 2 . . . . Average 146 | . . . . 175 . . 5 3 . . . . Influence Increases 1670 | . . 50 . 1160 20 108 37 15 60 220 . . Destroy 0b10 Robot/C 880 | . . 20 . 720 20 60 . . . 60 . . Destroy 0b10 Robot/NC 90 | . . . . 85 . 5 . . . . . . Destroy Leader 182 | . . . . 162 . 10 . . . 10 . . Allied During Kill 18 | . . . . . . 18 . . . . . . Trap Triggered on 0b10 20 | . . . . 10 . . 10 . . . . . Successful Hack 26 | . . . . 14 . . 12 . . . . . Disable Machine 90 | . . . . 90 . . . . . . . . Destroy Structure 49 | . . . . 49 . . . . . . . . Partial Spotted 30 | . . . . 15 . . . 15 . . . . Lose Combat Pursuer 285 | . . 30 . 15 . 15 15 . 60 150 . . Influence Decreases 1670 | . . 40 10 535 526 203 54 22 20 160 100 . Entered New Map 388 | . . . 10 . 232 23 10 5 . 8 100 . Time Decay 850 | . . 40 . 355 254 30 44 17 20 90 . . Lost Part 352 | . . . . 180 40 70 . . . 62 . . Lost Ally 80 | . . . . . . 80 . . . . . . Squads Dispatched 15 | . . . . 14 . 1 . . . . . . Investigation 3 | . . . . 3 . . . . . . . . Extermination 4 | . . . . 4 . . . . . . . . Reinforcement 4 | . . . . 4 . . . . . . . . Assault 1 | . . . . . . 1 . . . . . . Garrison 3 | . . . . 3 . . . . . . . . Intercept . | . . . . . . . . . . . . . Searches Triggered . | . . . . . . . . . . . . . Construction Impeded . | . . . . . . . . . . . . . Haulers Reinforced 2 | . . . . 2 . . . . . . . . Active Scanning Responses . | . . . . . . . . . . . . . Cargo Convoy Interrupts . | . . . . . . . . . . . . . Stealth | -11 -10 -10 -8 -6 -6 -6 -5 -4 -4 -4 -4 -3 --------- Run | Yrd Mat Sub Scr Fac Low Low Fac Fac Upp Upp Zhi Pro Distress Signals 4 | . . . . 3 . . . 1 . . . . Communications Jammed . | . . . . . . . . . . . . . Distress Signals . | . . . . . . . . . . . . . Times Spotted 102 | . . 11 . 50 2 11 2 8 2 12 . 4 Peak Tracking Total 8 | . . 2 . 7 1 7 2 8 4 7 . 4 Tactical Retreats 10 | . . 1 . 1 . 1 1 . 1 5 . . Traps | -11 -10 -10 -8 -6 -6 -6 -5 -4 -4 -4 -4 -3 ------- Run | Yrd Mat Sub Scr Fac Low Low Fac Fac Upp Upp Zhi Pro Traps Triggered 5 | . . 3 . 1 . . . 1 . . . . Indirectly . | . . . . . . . . . . . . . Trap Hack Attempts . | . . . . . . . . . . . . . Triggered . | . . . . . . . . . . . . . Disarmed . | . . . . . . . . . . . . . Reprogrammed . | . . . . . . . . . . . . . Reused 2 | . . . . 1 . . 1 . . . . . Traps Extracted . | . . . . . . . . . . . . . Installed 2 | . . . . 1 . . 1 . . . . . Triggered 2 | . . . . 1 . . 1 . . . . . Most Traps Carried 3 | . . 2 3 3 2 2 1 . . . . . Machines | -11 -10 -10 -8 -6 -6 -6 -5 -4 -4 -4 -4 -3 ---------- Run | Yrd Mat Sub Scr Fac Low Low Fac Fac Upp Upp Zhi Pro Machines Disabled 7 | . . . . 6 1 . . . . . . . Max in Single Turn 3 | . . . . 3 1 . . . . . . . Garrison Access 1 | . . . . 1 . . . . . . . . Machines Repaired . | . . . . . . . . . . . . . Machines Dismantled . | . . . . . . . . . . . . . Machines Sabotaged . | . . . . . . . . . . . . . Overloaded Fab Kills . | . . . . . . . . . . . . . Hacking | -11 -10 -10 -8 -6 -6 -6 -5 -4 -4 -4 -4 -3 --------- Run | Yrd Mat Sub Scr Fac Low Low Fac Fac Upp Upp Zhi Pro Machines Accessed 24 | . . . 6 7 . . 1 . . 1 9 . Terminals 2 | . . . . 2 . . . . . . . . Fabricators . | . . . . . . . . . . . . . Repair Stations . | . . . . . . . . . . . . . Recycling Units 3 | . . . . 3 . . . . . . . . Scanalyzers 2 | . . . . 1 . . 1 . . . . . Garrison Access 1 | . . . . 1 . . . . . . . . Total Hacks 100 | . . . 37 13 . . 1 . . 1 48 . Successful 92 | . . . 37 5 . . 1 . . 1 48 . Failed 8 | . . . . 8 . . . . . . . . Catastrophic 1 | . . . . 1 . . . . . . . . Database Lockouts . | . . . . . . . . . . . . . Manual 11 | . . . . 8 . . . . . . 3 . Terminals 3 | . . . . 3 . . . . . . . . Fabricators . | . . . . . . . . . . . . . Repair Stations . | . . . . . . . . . . . . . Recycling Units 5 | . . . . 5 . . . . . . . . Scanalyzers 4 | . . . . 3 . . 1 . . . . . Garrison Access 2 | . . . . 2 . . . . . . . . Terminal Hacks 86 | . . . 37 . . . . . . 1 48 . Record 72 | . . . 36 . . . . . . . 36 . Part Schematic 4 | . . . . . . . . . . . 4 . Robot Analysis 4 | . . . . . . . . . . . 4 . Prototype ID Bank 4 | . . . . . . . . . . . 4 . Open Door 1 | . . . . . . . . . . 1 . . Proto ID Catalog 1 | . . . 1 . . . . . . . . . Fabricator Hacks . | . . . . . . . . . . . . . Repair Station Hacks . | . . . . . . . . . . . . . Recycling Unit Hacks . | . . . . . . . . . . . . . Scanalyzer 2 | . . . . 1 . . 1 . . . . . Retrieve Study 2 | . . . . 1 . . 1 . . . . . Garrison Access Hacks 1 | . . . . 1 . . . . . . . . Seal Access 1 | . . . . 1 . . . . . . . . Unauthorized Hacks 3 | . . . . 3 . . . . . . . . Terminals 1 | . . . . 1 . . . . . . . . Botnet 1 | . . . . 1 . . . . . . . . Fabricators . | . . . . . . . . . . . . . Repair Stations . | . . . . . . . . . . . . . Recycling Units 2 | . . . . 2 . . . . . . . . Fedlink 2 | . . . . 2 . . . . . . . . Scanalyzers . | . . . . . . . . . . . . . Garrison Access . | . . . . . . . . . . . . . Data Cores Recovered . | . . . . . . . . . . . . . Used . | . . . . . . . . . . . . . Hacking Detections 3 | . . . . 3 . . . . . . . . Full Trace Events 1 | . . . . 1 . . . . . . . . Feedback Events . | . . . . . . . . . . . . . Feedback Blocked . | . . . . . . . . . . . . . Robot Schematics Acquired . | . . . . . . . . . . . . . Robots Built . | . . . . . . . . . . . . . Authchips . | . . . . . . . . . . . . . Time . | . . . . . . . . . . . . . Total Robot Build Rating . | . . . . . . . . . . . . . Part Schematics Acquired 4 | . . . . . . . . . . . 4 . Parts Built . | . . . . . . . . . . . . . Authchips . | . . . . . . . . . . . . . Time . | . . . . . . . . . . . . . Total Part Build Rating . | . . . . . . . . . . . . . Part Studies Acquired 2 | . . . . 1 . . 1 . . . . . Parts Repaired . | . . . . . . . . . . . . . Time . | . . . . . . . . . . . . . Parts Recycled . | . . . . . . . . . . . . . Recycled Matter . | . . . . . . . . . . . . . Retrieved Matter . | . . . . . . . . . . . . . Retrieved Components . | . . . . . . . . . . . . . Parts Scanalyzed . | . . . . . . . . . . . . . Part Schematics Acquired . | . . . . . . . . . . . . . Parts Damaged . | . . . . . . . . . . . . . Bothacking | -11 -10 -10 -8 -6 -6 -6 -5 -4 -4 -4 -4 -3 ------------ Run | Yrd Mat Sub Scr Fac Low Low Fac Fac Upp Upp Zhi Pro Used RIF Installer . | . . . . . . . . . . . . . Robots Hacked . | . . . . . . . . . . . . . Non-combat . | . . . . . . . . . . . . . Combat . | . . . . . . . . . . . . . Robot Hacks Applied . | . . . . . . . . . . . . . Relay Couplers Released . | . . . . . . . . . . . . . Fabnet Peak Effective % . | . . . . . . . . . . . . . Robots Rewired 4 | . . . . . 4 . . . . . . . Allies Hacked . | . . . . . . . . . . . . . Hacks Repelled . | . . . . . . . . . . . . . Allies | -11 -10 -10 -8 -6 -6 -6 -5 -4 -4 -4 -4 -3 -------- Run | Yrd Mat Sub Scr Fac Low Low Fac Fac Upp Upp Zhi Pro Total Allies 4 | . . . . . 4 . . . . . . . Largest Group 4 | . . . . . 4 4 . . . . . . Highest-Rated Group 116 | . . . . . 116 116 . . . . . . Highest-Rated Ally 29 | . . . . . 29 29 . . . . . . Total Orders . | . . . . . . . . . . . . . Ally Attacks 33 | . . . . . . 33 . . . . . . Total Damage 530 | . . . . . . 530 . . . . . . Kills 3 | . . . . . . 3 . . . . . . Allies Corrupted . | . . . . . . . . . . . . . Allies Melted . | . . . . . . . . . . . . . Intel | -11 -10 -10 -8 -6 -6 -6 -5 -4 -4 -4 -4 -3 ------- Run | Yrd Mat Sub Scr Fac Low Low Fac Fac Upp Upp Zhi Pro Active Infowar (turns) 3422 | . . . . 1837 545 75 161 103 301 400 . . Optics 2008 | . . . . 1388 545 75 . . . . . . Sensors 965 | . . . . . . . 161 103 301 400 . . Traps 1498 | . . . . 1498 . . . . . . . . Robot Analysis Total 4 | . . . . . . . . . . . 4 . Derelict Logs Recovered 6 | . . 2 2 . . . . . 1 1 . . Drone Launches . | . . . . . . . . . . . . . Drone Recoveries . | . . . . . . . . . . . . . Exploration | -11 -10 -10 -8 -6 -6 -6 -5 -4 -4 -4 -4 -3 ------------- Run | Yrd Mat Sub Scr Fac Low Low Fac Fac Upp Upp Zhi Pro Turns Passed 8255 | . 113 1462 2451 1872 545 76 166 103 301 519 363 284 Spaces Moved 6156 | 1 101 923 1732 761 403 47 238 249 636 439 416 210 Core 460 | . . 1 . . . 4 94 . . 120 219 22 Treads . | . . . . . . . . . . . . . Legs 3212 | 1 7 543 1732 544 . . . . . . 197 188 Wheels 1136 | . 94 379 . 217 403 43 . . . . . . Hover . | . . . . . . . . . . . . . Flight 1348 | . . . . . . . 144 249 636 319 . . Fastest Speed 40 | 120 90 105 130 100 105 50 40 40 40 40 50 50 Average Speed 106 | 120 105 122 130 175 105 122 49 40 40 43 83 112 Slowest Speed 600 | 120 120 550 130 200 130 600 100 40 40 250 120 120 Overloaded Moves . | . . . . . . . . . . . . . Propulsion Burnouts . | . . . . . . . . . . . . . Robots Hopped 2 | . . . . . . . 2 . . . . . Potential Cave-ins . | . . . . . . . . . . . . . Cave-ins Triggered . | . . . . . . . . . . . . . Teleports 1 | . . . . . . . . . . . 1 . Exploration Rate (%) 34 | 2 8 36 89 28 59 9 6 9 66 53 62 24 Regions Visited 12 Branch Regions 8 Pre-discovered Areas 6 | . . 1 1 1 . . . . . . 3 . Known Exits Taken . | . . . . . . . . . . . . . Unknown Exits Taken 12 | 1 1 1 1 1 1 1 1 1 1 1 1 . Scrap Searched 20 | . . 3 6 . 6 . . . 2 2 . 1 Spaces Dug 4 | . . . . 4 . . . . . . . . Terrain Destroyed 70 | . . 16 . 51 . . . . . 3 . . Melee 2 | . . . . 2 . . . . . . . . Projectile 36 | . . . . 33 . . . . . 3 . . AOE 32 | . . 16 . 16 . . . . . . . . Terrain Rammed . | . . . . . . . . . . . . . Walls Destroyed . | . . . . . . . . . . . . . Machines Disabled . | . . . . . . . . . . . . . Actions | -11 -10 -10 -8 -6 -6 -6 -5 -4 -4 -4 -4 -3 --------- Run | Yrd Mat Sub Scr Fac Low Low Fac Fac Upp Upp Zhi Pro Total 7422 | . 109 1154 1932 1056 504 55 271 250 672 746 429 244 Wait 814 | . . 147 181 108 38 . 20 . 25 278 . 17 Move 6140 | . 100 922 1731 760 402 46 233 248 635 438 415 210 Hop 2 | . . . . . . . 2 . . . . . Pick Up 56 | . 1 9 9 25 3 1 1 . 2 1 3 1 Fast Attach 38 | . 1 6 3 6 1 . 3 2 2 6 6 2 Attach 45 | . 2 5 . 18 5 3 3 . . 3 4 2 Detach 4 | . . 2 . . . . 1 . . 1 . . Swap 13 | . . 4 2 6 1 . . . . . . . Drop 34 | . 5 2 6 18 . . 1 . . 2 . . Fire 202 | . . 51 . 102 6 4 1 . 8 17 1 12 Melee 26 | . . 6 . 12 2 1 5 . . . . . Ram . | . . . . . . . . . . . . . Kick . | . . . . . . . . . . . . . Crush . | . . . . . . . . . . . . . Escape Stasis . | . . . . . . . . . . . . . Rewire 46 | . . . . . 46 . . . . . . . Trap 2 | . . . . 1 . . 1 . . . . . Miscellaneous . | . . . . . . . . . . . . . Route ------- -11/Scrapyard -10/Materials -10/Subcaves (discovered 4 exits: [*Mat x2] / [*Rec] / *Scr) -8/Scraptown (discovered 2 exits: *Fac x2) -6/Factory (discovered 2 exits: *Fac / [*Low]) -6/Lower Caves -6/Lower Caves -5/Factory -4/Factory -4/Upper Caves -4/Upper Caves -4/Zhirov -3/Proximity Caves History --------- Turn | Location | Event 1 | -11/Scrapyard | Discovered new exit (range 0) 1 | -11/Scrapyard | Entered Materials 90 | -10/Materials | Discovered new exit (range 6) 114 | -10/Materials | Entered Subcaves 115 | -10/Subcaves | Approached by a straggling Scientist 127 | -10/Subcaves | Learned location of Mines (-10) 255 | -10/Subcaves | Discovered new exit (range 14) 302 | -10/Subcaves | Build established: Mutant 493 | -10/Subcaves | Scientist uncovered a shortcut to Scraptown 645 | -10/Subcaves | A Subdweller sparked back to life 645 | -10/Subcaves | A Subdweller sparked back to life 671 | -10/Subcaves | Found Prototype Leg 671 | -10/Subcaves | Identified Cargo Legs 673 | -10/Subcaves | Attached Cargo Legs, gained temporary slots: Utility x2 685 | -10/Subcaves | Core integrity fell below 50% 758 | -10/Subcaves | Lost 3 parts (1p2w) 761 | -10/Subcaves | Shifting Twisted Machinery released Sub. Monowheel 762 | -10/Subcaves | Shifting Twisted Machinery released Riot Gun 776 | -10/Subcaves | Shifting Twisted Machinery released Sub. Beam Cannon 920 | -10/Subcaves | Discovered new exit (range 7) 1489 | -10/Subcaves | Discovered new exit (range 11) 1576 | -10/Subcaves | Entered Scraptown 1770 | -8/Scraptown | Discovered new exit (range 11) 1836 | -8/Scraptown | Scanned Subdweller tech in exchange for log data 1840 | -8/Scraptown | Learned Factory security intel 1890 | -8/Scraptown | Visited CR-KLE's Repair Center 1907 | -8/Scraptown | Visited Cave Peace 1965 | -8/Scraptown | Learned location of Extension (-4) 2177 | -8/Scraptown | Visited UFD Registry 2178 | -8/Scraptown | Registered with UFD as "Gravtank" 2211 | -8/Scraptown | Visited The Evicted 2226 | -8/Scraptown | Visited Awakened 2241 | -8/Scraptown | Visited IN-MT5's Study 2301 | -8/Scraptown | Visited Science Guys 2348 | -8/Scraptown | Visited LU-1G1's Boring Crew 2411 | -8/Scraptown | Visited A0-MCA Data Center 2419 | -8/Scraptown | Given a B rating by A0-MCA 2424 | -8/Scraptown | Found A0-MCA's Component Scanner 2585 | -8/Scraptown | Visited Chapter 10 2607 | -8/Scraptown | Visited Scrap Suit Storage 2668 | -8/Scraptown | Visited Scrapoid Pod Storage 2675 | -8/Scraptown | Found Scrapoid Pod 2694 | -8/Scraptown | Visited Research Penetration Think Tank 2727 | -8/Scraptown | Visited Scrapoid Research Area 2763 | -8/Scraptown | Visited Junk Repository 2798 | -8/Scraptown | Visited Cartography Club 3019 | -8/Scraptown | Discovered new exit (range 3) 3564 | -8/Scraptown | CR-KLE repaired 4 parts 3903 | -8/Scraptown | Found Scrap Suit 3958 | -8/Scraptown | Met Optimus 3958 | -8/Scraptown | Accepted into 0bPrime 4027 | -8/Scraptown | Entered Factory 4027 | -6/Factory | Evolved 8 slots: Utility x6, Weapon x2 4366 | -6/Factory | Lost 3 parts (1p2u) 4765 | -6/Factory | Build established: Skirmisher 5089 | -6/Factory | Garrison activated, responded to threat 5200 | -6/Factory | Garrison activated, responded to threat 5314 | -6/Factory | Loaded intel: 8 recycling unit locations 5513 | -6/Factory | Learned location of Protoforge (-2) 5636 | -6/Factory | Lost 4 parts (2p2w) 5734 | -6/Factory | Discovered new exit (range 13) 5767 | -6/Factory | Discovered new exit (range 3) 5772 | -6/Factory | Garrison activated, responded to threat 5888 | -6/Factory | Core integrity fell below 50% 5899 | -6/Factory | Entered Lower Caves 5918 | -6/Lower Caves | Lost 10 parts (3p2n1u4w) 6082 | -6/Lower Caves | Attracted the attention of an 0b10 checkpoint 6287 | -6/Lower Caves | Build established: Scavenger-Gunner 6287 | -6/Lower Caves | Attacked by a delusional Derelict stockpiling Unaware 6341 | -6/Lower Caves | Lost 4 parts (2n1u1w) 6394 | -6/Lower Caves | Discovered new exit (range 21) 6444 | -6/Lower Caves | Entered another Lower Caves area 6444 | -6/Lower Caves | Accompanied by 4 allies 6451 | -6/Lower Caves | Spotted B-75 Beast 6478 | -6/Lower Caves | Attracted the attention of an 0b10 outpost 6509 | -6/Lower Caves | Discovered new exit (range 7) 6510 | -6/Lower Caves | Core integrity fell below 20% 6511 | -6/Lower Caves | Lost 5 parts (2n2u1w) 6519 | -6/Lower Caves | Released all parts (8) 6520 | -6/Lower Caves | Entered Factory 6520 | -5/Factory | Evolved 2 slots: Utility x2 6539 | -5/Factory | Lost 4 allies 6671 | -5/Factory | Discovered new exit (range 15) 6686 | -5/Factory | Entered another Factory area 6686 | -4/Factory | Evolved 2 slots: Utility x2 6783 | -4/Factory | Discovered new exit (range 13) 6786 | -4/Factory | Build established: Mutant 6789 | -4/Factory | Entered Upper Caves 6837 | -4/Upper Caves | Learned Research garrison access intel 6984 | -4/Upper Caves | Discovered new exit (range 14) 7090 | -4/Upper Caves | Entered another Upper Caves area 7190 | -4/Upper Caves | Build established: Hacker-Mutant 7451 | -4/Upper Caves | Attracted the attention of an 0b10 checkpoint 7462 | -4/Upper Caves | Learned Research stockpile data 7531 | -4/Upper Caves | Core integrity fell below 50% 7590 | -4/Upper Caves | Lost 11 parts (1p1n6u3w) 7599 | -4/Upper Caves | Spotted B-86 Titan 7603 | -4/Upper Caves | Discovered new exit (range 11) 7609 | -4/Upper Caves | Entered Zhirov 7609 | -4/Zhirov | Discovered new exit (range 3) 7628 | -4/Zhirov | Learned location of Quarantine (-2) 7628 | -4/Zhirov | Learned location of Testing (-3) 7628 | -4/Zhirov | Learned location of Command (-1) 7646 | -4/Zhirov | Found Alien Artifact 7657 | -4/Zhirov | Identified Transdimensional Reconstructor 7657 | -4/Zhirov | Warped through subspace 7698 | -4/Zhirov | Found Alien Artifact 7759 | -4/Zhirov | Identified Integrated Dissipator 7759 | -4/Zhirov | Installed Integrated Dissipator, increased core heat dissipation (+20) 7972 | -4/Zhirov | Entered Proximity Caves 8059 | -3/Proximity Caves | Spotted B-86 Titan 8166 | -3/Proximity Caves | Core integrity fell below 20% 8218 | -3/Proximity Caves | Lost 9 parts (1p2n4u2w) 8256 | -3/Proximity Caves | Destroyed by S-43 Plague with Heavy Machine Gun Last Messages --------------- 08138_ Adv. Myomer Leg destroyed. 08138_ Slug penetrates Wall. 08141_ Adv. Power Amplifier destroyed. 08141_ Knocked back. 08148_ B-86 Titan exits siege mode. 08148_ Acquired 2 matter. 08159_ Slug penetrates Wall. 08162_ Adv. Myomer Leg blasted off. 08162_ Penetrated by Slug. 08162_ Acquired 3 matter. 08164_ Acquired Adv. Myomer Leg. 08165_ Adv. Myomer Leg destroyed. 08166_ B-86 Titan activates siege mode. 08177_ Mak. Light Armor Plating destroyed. 08177_ Penetrated by Slug. 08177_ Slug penetrates Wall. 08187_ Imp. Targeting Computer destroyed. 08220_ Penetrated by Slug. 08244_ Adv. Myomer Leg destroyed. 08245_ Adv. Hacking Suite destroyed. Map ----- +----------------------------------------------------+ | #### ????????????????????????? | | ## #???????????????????????????????? | | "### ##???????????????????????????????? | | #?# ######????????????????????????????????? | | ## ## ##?????????????????????????????????????? | | # ## ##?????????????????????????????????????? | | ## #?????????????????????????????????????? | | ##????????????????????????????????????? | | ## ######?????#??? ?????????????????????? | | ## ##??? ## ????????????????????? | | ### ## ### #???????????????????? | | ## ###### ???????????????????? | | #????# ???????????????????? | | ####????# ## ?????????????????????? | | # ##???????# ### #???????????????????????? | | "####????????# ####???? #???????????????????????? | | #????????????# #????????????????????"???????????? | | ###??????????# #??????????????????? ???????????? | | ##?????????# #??####???????????# ??????????? | | ##????????# #??# #?????????? ??????????? | | #????????# #??# ##???????? ??????????? | | ## #????????# #### ##????? ?????????? | | ?####????????# s ##??? ?????????? | | ?????????????# ### ??????????? | | ?????????????######### #???????????????? | | ?????????????????????# @ #???????????????? | | ?????????????????????## #### ##???????????????? | | ??????????????????????###????? ##????????????????? | | ?????????????????????????????????????????????????? | | ?????????????????????????????????????????????????? | | ?????????????????????????????????????????????????? | | ?????????????????????????????????????????????????? | | ?????????????????????????????????????????????????? | | ?????????????????????????????????????????????????? | | ?????????????????????????????????????????????????? | | ?????????????????????????????????????????????????? | | ?????????????????????????????????????????????????? | | ?????????????????????????????????????????????????? | | ?????????????????????????????????????????????????? | | ?????????????????????????????????????????????????? | | ?????????????????????????????????????????????????? | | ?????????????????????????????????????????????????? | | ?????????????????????????????????????????????????? | | ?????????????????????????????????????????????????? | | ?????????????????????????????????????????????????? | | ?????????????????????????????????????????????????? | | ?????????????????????????????????????????????????? | | ?????????????????????????????????????????????????? | | ?????????????????????????????????????????????????? | | ?????????????????????????????????????????????????? | +----------------------------------------------------+ Best States ------------- Heat Dissipation 94 Coolant Potential 50 Energy Generation 28 Energy Capacity 295 Matter Stores 300 Matter Capacity 300 Sight Range 22 Robot Scan Range 15 Terrain Scan Density 10 Power Amplification 30 Armor Coverage 600 Phase Shifting 5 Evasion (%) 70 Targeting Accuracy 14 Melee Accuracy 5 Target Analysis 5 Armor Integrity Analysis 30 Matter Filtering 50 Offensive Hacking 28 Defensive Hacking 10 Item Schematics ----------------- Assault Drone Bay | -4/Zhirov | Free Exp. Heat Sink | -4/Zhirov | Free Exp. Optical Array | -4/Zhirov | Free Imp. Arc Thrower | -4/Zhirov | Free Robot Schematics ------------------ None Fabricated ------------ Nothing Repaired ---------- Nothing Studied --------- Phase Cannon | -6/Factory | Hacked Nuclear Pulse Array | -5/Factory | Hacked Alien Tech Used ----------------- Transdimensional Reconstructor Integrated Dissipator Achievements -------------- Throw Away The Key Wiki Contributor Challenges ------------ None Game ------ Seed StealthShrapnelInjector Manual? 0 Play Time 01:41:25 Cumulative 132.6 hours Start 2025.10.26 @ 15:50:48 End 2025.10.26 @ 18:04:17 Sessions 1 Manual Loads 0 Difficulty Rogue Special Mode None Game No. 135 Rogue 135 Adventurer 0 Explorer 0 Win Type - Total 1 Types 1/0/0/0/0/0/0/0/0/0 Lore% 65 Gallery% 52 Achievement% 36 Wizard Run 0 Options --------- Layout 0 ASCII 0 Keyboard 0 Movement Mouse Keybinds 0 Fullscreen 2 Font 18/X11 Map View 76x50 Zoom Use 0% Tactical HUD 1 Map Filters NONE Filters NONE Steam 1 RUN: 9cd520b3-aeb6-4ec3-a014-a6342252ca5b